bitfinex/quotes_ETHUSD_20241212
["timestamp","ask_amount","ask_price","bid_price","bid_amount"]
[1734021487504,0.55,3933.1,3931.0,0.005]
[1734021487857,0.55,3933.1,3931.1,0.7523]
[1734021488316,3.55,3933.1,3931.1,0.7523]
[1734021488608,3.55,3933.1,3931.3,0.7523]
[1734021488758,0.355,3933.0,3931.5,0.7523]
[1734021488961,0.55,3933.1,3931.5,0.7523]
[1734021489614,3.34270814,3932.7,3931.0,0.005]
[1734021489776,3.55,3932.6,3931.0,0.83]
[1734021490829,0.55,3932.4,3931.0,0.83]
[1734021492419,3.55,3932.1,3931.0,0.83]
[1734021492581,0.55,3931.9,3931.0,0.83]
[1734021492782,0.8141,3933.0,3931.0,0.83]
[1734021493214,0.8141,3933.7,3931.3,0.7948]
[1734021494508,3.8141,3933.7,3931.3,0.7948]
[1734021494708,0.55,3933.6,3931.3,0.7948]
[1734021494913,0.8198,3934.2,3931.8,0.8003]
[1734021495079,0.8198,3934.2,3932.0,0.8003]
[1734021495284,0.8198,3934.2,3932.2,0.8003]
[1734021495523,0.64691024,3934.6,3932.2,0.8003]
[1734021495524,0.1254584,3934.0,3932.2,0.8003]
[1734021497179,0.55,3933.9,3932.2,0.8003]
[1734021497377,0.55,3933.9,3932.3,0.28003]
[1734021497619,0.55,3933.9,3932.4,0.7507]
[1734021498125,0.64691024,3934.6,3932.5,0.7507]
[1734021498722,0.64691024,3934.6,3932.7,0.822]
[1734021499226,1.58673929,3935.7,3933.2,0.822]
[1734021499227,1.29110268,3935.7,3933.2,0.822]
[1734021499377,1.29110268,3935.7,3932.3,0.28003]
[1734021499378,0.53120268,3935.7,3933.6,2.0]
[1734021499583,3.34270814,3936.3,3933.7,0.7721]
[1734021499584,0.7599,3936.2,3933.7,0.7721]
[1734021500186,0.12662663,3935.5,3933.7,0.7721]
[1734021500383,3.34270814,3935.3,3933.7,0.7721]
[1734021500580,1.3345,3935.2,3933.7,0.7721]
[1734021500784,4.3345,3935.2,3933.7,0.7721]
[1734021501129,0.55,3935.0,3933.7,0.7721]
[1734021501693,0.76772081,3935.1,3933.7,0.7721]
[1734021501919,0.12662663,3935.5,3933.7,0.7721]
[1734021502982,0.12662663,3935.5,3933.9,0.8202]
[1734021503383,3.34270814,3936.3,3933.9,0.8202]
[1734021504010,0.12743412,3935.6,3933.9,0.8202]
[1734021505693,0.55,3935.5,3933.9,0.8202]
[1734021505919,0.55,3935.3,3933.9,0.8202]
[1734021506230,0.36774341,3935.4,3933.9,0.8202]
[1734021506231,0.55,3935.4,3933.9,0.8202]
[1734021506426,3.55,3935.2,3933.9,0.8202]
[1734021507711,0.808,3935.5,3933.9,0.8202]
[1734021507955,0.55,3935.5,3933.9,0.8202]
[1734021508083,0.55,3935.5,3933.9,1.10222]
[1734021508284,0.12743412,3935.6,3934.0,0.782]
[1734021508886,3.34270814,3935.3,3934.0,0.782]
[1734021509257,3.34270814,3934.8,3934.0,0.782]
[1734021509408,3.55,3934.7,3931.2,0.02542151]
[1734021509617,0.55,3934.5,3932.0,2.0]
[1734021510049,0.55,3934.5,3932.4,2.0]
[1734021510206,0.68927081,3934.6,3932.8,2.0]
[1734021510406,0.55,3935.1,3932.8,2.0]
[1734021510909,0.55,3935.1,3932.9,2.0]
[1734021512347,0.55,3935.1,3933.0,0.8006]
[1734021513115,3.34270814,3934.7,3933.0,0.8006]
[1734021513359,3.55,3934.3,3933.0,0.8006]
[1734021513561,0.65250245,3934.2,3933.0,0.8006]
[1734021516458,0.55,3934.1,3933.0,0.8006]
[1734021516661,4.3695,3933.8,3931.5,2.0]
[1734021516955,4.3695,3933.8,3932.1,0.8267]
[1734021518316,2.97502451,3933.4,3932.1,0.8267]
[1734021518516,3.55,3933.3,3932.1,0.8267]
[1734021519328,0.8195,3933.8,3932.2,2.0]
[1734021519542,0.8304,3934.5,3932.4,0.7796]
[1734021519757,0.12811561,3934.2,3932.4,0.7796]
[1734021520686,3.12811561,3934.2,3932.4,0.7796]
[1734021521251,0.55,3934.1,3932.4,0.7796]
[1734021522302,3.12811561,3934.2,3931.0,0.03042628]
[1734021522303,0.12811561,3934.2,3932.6,2.7731]
[1734021522502,0.12811561,3934.2,3932.8,0.7731]
[1734021523278,0.8304,3934.5,3932.8,0.7731]
[1734021523993,4.31269897,3934.7,3932.8,0.7731]
[1734021523994,4.05553661,3934.7,3932.8,0.7731]
[1734021524153,4.03056112,3935.3,3933.5,0.7731]
[1734021524359,2.97502451,3935.3,3933.5,0.7731]
[1734021524575,0.48448611,3935.2,3933.6,0.27731]
[1734021524984,0.48448611,3935.2,3933.5,0.7731]
[1734021525185,0.12805602,3935.1,3933.5,0.7731]
[1734021525374,0.55,3935.0,3933.5,0.7731]
[1734021526490,0.12805602,3935.1,3933.5,0.7731]
[1734021526659,3.48448611,3935.2,3933.5,0.7731]
[1734021526860,1.05553661,3935.6,3933.9,0.8102]
[1734021527174,0.12573905,3935.5,3933.9,0.8102]
[1734021527374,0.12267841,3935.5,3933.9,0.8102]
[1734021527713,2.97502451,3935.8,3933.9,0.8102]
[1734021528104,4.03056112,3935.8,3933.9,0.8102]
[1734021528310,4.95353324,3935.7,3933.9,0.8102]
[1734021528461,3.6413266,3935.7,3933.9,0.8102]
[1734021528805,4.86221204,3935.6,3933.9,0.8102]
[1734021528958,4.60553661,3935.6,3933.9,0.8102]
[1734021529304,0.55,3935.4,3933.9,0.8102]
[1734021529504,0.55,3935.2,3933.9,0.8102]
[1734021531685,0.46055366,3935.3,3933.9,0.8102]
[1734021531855,4.86236205,3935.6,3933.9,0.8102]
[1734021532195,3.55,3935.1,3933.9,0.8102]
[1734021532771,0.55,3934.5,3933.3,0.7862]
[1734021533000,0.8143,3934.0,3932.1,0.7862]
[1734021533202,0.55,3933.9,3932.1,0.7862]
[1734021533497,0.8143,3934.0,3932.1,0.7862]
[1734021533498,3.55,3933.6,3932.1,0.7862]
[1734021536498,0.55,3933.7,3932.1,0.7862]
[1734021537374,2.97502451,3934.2,3932.2,0.8051]
[1734021537577,1.05553661,3934.3,3932.6,2.0]
[1734021537876,1.05553661,3934.8,3932.7,0.8051]
[1734021538088,0.26388415,3934.7,3932.7,3.3704]
[1734021538397,0.26388415,3934.7,3932.8,0.8276]
[1734021538601,0.26388415,3934.7,3932.8,2.5427]
[1734021538799,0.26388415,3934.7,3932.9,0.8276]
[1734021538800,2.63489326,3934.7,3932.9,0.8276]
[1734021539098,1.3154725,3934.6,3933.1,0.8202]
[1734021539403,1.58330492,3934.9,3933.1,0.8202]
[1734021539404,1.05553661,3934.9,3933.2,0.8202]
[1734021539606,1.05553661,3934.8,3933.2,3.3627]
[1734021539807,1.05553661,3934.9,3933.2,3.3627]
[1734021540010,1.05553661,3934.8,3933.2,3.3627]
[1734021540305,2.37124512,3934.9,3933.3,0.8098]
[1734021540611,5.37482943,3935.1,3933.3,0.8098]
[1734021540612,2.97502451,3934.6,3933.3,3.3522]
[1734021540812,4.31570851,3934.5,3933.3,3.3522]
[1734021541108,1.31613101,3934.4,3933.3,3.3522]
[1734021541605,3.0,3934.5,3933.3,3.3522]
[1734021541807,1.05553661,3934.5,3933.3,3.3522]
[1734021542008,0.61888415,3934.5,3933.3,3.3522]
[1734021542514,5.96552873,3934.5,3933.3,3.3522]
[1734021542675,1.05553661,3934.3,3933.3,3.3522]
[1734021542874,3.0,3934.4,3933.3,3.3522]
[1734021543175,1.17940598,3934.8,3933.3,3.3522]
[1734021543319,2.97502451,3935.5,3933.3,3.3522]
[1734021543320,1.05553661,3935.2,3933.5,0.756]
[1734021543529,1.05553661,3935.4,3933.7,2.0]
[1734021543824,2.37137156,3935.5,3933.8,0.81411376]
[1734021544121,2.22463152,3935.7,3933.9,2.7887]
[1734021544122,1.05553661,3935.6,3933.9,2.7887]
[1734021544328,1.05553661,3935.5,3933.9,5.3307]
[1734021544539,2.37136615,3935.6,3934.1,0.7887]
[1734021544721,0.12790569,3935.7,3934.1,2.5419]
[1734021545026,0.12790569,3935.7,3934.2,0.7887]
[1734021545200,0.12790569,3935.7,3934.2,2.5418]
[1734021545544,0.12790569,3935.7,3934.3,0.7887]
[1734021545831,0.12790569,3935.7,3934.4,0.33305]
[1734021546015,0.12790569,3935.7,3934.5,0.7887]
[1734021546184,0.12790569,3935.7,3934.5,3.3303]
[1734021546826,1.58330492,3936.2,3934.5,3.3303]
[1734021546827,1.05553661,3936.2,3934.6,0.81411241]
[1734021547031,1.05553661,3936.2,3934.7,0.7887]
[1734021547032,0.55,3936.1,3934.7,0.7887]
[1734021547236,0.16055366,3936.0,3934.7,0.7887]
[1734021547703,0.16055366,3936.0,3934.8,0.02541047]
[1734021548250,1.05553661,3936.3,3934.8,0.8271]
[1734021548456,1.05553661,3936.7,3935.2,0.8271]
[1734021549009,1.31423054,3936.8,3935.2,0.8271]
[1734021549207,1.18014799,3937.1,3935.3,0.84400589]
[1734021549529,2.65138735,3937.7,3936.0,0.8186]
[1734021549530,1.05553661,3937.7,3936.0,0.8186]
[1734021549699,0.26388415,3937.6,3936.1,0.28186]
[1734021549906,0.26388415,3937.6,3936.0,0.8186]
[1734021550317,0.12598185,3937.5,3936.0,0.8186]
[1734021551457,0.55,3937.4,3936.0,0.8186]
[1734021551761,1.565485,3937.4,3936.0,0.8186]
[1734021552934,3.55,3937.2,3936.0,0.8186]
[1734021553102,0.55,3937.0,3936.0,0.8186]
[1734021553449,0.75405095,3937.1,3936.0,0.8186]
[1734021553610,1.015485,3937.4,3936.0,0.8186]
[1734021554467,3.52502451,3937.3,3936.0,0.8186]
[1734021554753,0.55,3937.1,3936.0,0.8186]
[1734021555607,0.26388415,3937.6,3936.0,0.8186]
[1734021555809,1.14141785,3937.5,3936.0,0.8186]
[1734021556018,0.4405302,3937.4,3936.0,1.10046]
[1734021556253,0.4405302,3937.4,3936.1,0.785]
[1734021556449,0.26388415,3937.6,3936.1,2.5406]
[1734021556654,1.015359,3937.9,3936.4,2.0]
[1734021556858,0.788,3938.5,3936.4,2.0]
[1734021556859,0.788,3938.5,3936.5,0.785]
[1734021557161,1.015305,3938.1,3936.6,0.8194]
[1734021557455,2.97502451,3938.8,3936.8,2.0]
[1734021557609,1.015198,3938.5,3936.9,0.8194]
[1734021557812,2.97502451,3938.8,3937.0,0.786]
[1734021558014,1.015193,3938.7,3937.0,0.786]
[1734021558766,0.55,3938.6,3937.0,0.786]
[1734021559757,3.55,3938.2,3937.0,0.786]
[1734021561727,3.0,3937.7,3937.0,0.786]
[1734021561943,1.14750245,3937.6,3936.6,0.827]
[1734021562283,0.59750245,3937.6,3936.6,0.827]
[1734021562935,0.55,3937.5,3936.6,0.827]
[1734021564383,0.59750245,3937.6,3936.6,0.827]
[1734021564859,0.55,3937.5,3936.6,0.827]
[1734021565062,0.42772214,3937.4,3936.6,0.827]
[1734021566449,0.59750245,3937.6,3936.6,0.827]
[1734021568283,2.53884,3938.8,3936.6,0.827]
[1734021568284,3.8687106,3938.3,3936.6,0.827]
[1734021568931,2.97502451,3937.8,3936.6,0.827]
[1734021569548,3.0,3937.2,3936.6,0.827]
[1734021570131,0.779,3937.4,3936.6,0.827]
[1734021570377,0.55,3937.3,3936.6,0.827]
[1734021570675,0.1329,3937.2,3936.6,0.827]
[1734021570873,0.55,3937.6,3936.6,0.827]
[1734021574769,2.97502451,3937.3,3936.6,0.827]
[1734021574971,3.55,3937.2,3936.6,0.827]
[1734021575603,0.90627334,3937.8,3936.6,0.827]
[1734021575604,2.97502451,3937.8,3936.6,0.827]
[1734021575757,0.8229,3938.2,3936.6,0.827]
[1734021575958,2.97502451,3937.8,3936.6,0.827]
[1734021576869,3.55,3937.7,3936.6,0.827]
[1734021577067,3.0,3937.7,3936.6,0.827]
[1734021577704,3.12582868,3937.7,3936.6,0.827]
[1734021579607,0.37979245,3938.1,3936.6,0.827]
[1734021579804,1.015193,3938.7,3936.8,0.8013]
[1734021579974,1.015193,3938.7,3937.0,0.7863]
[1734021580306,2.97502451,3938.8,3937.0,0.8116946]
[1734021580670,2.97502451,3938.8,3937.0,0.7863]
[1734021580879,0.37613245,3938.7,3937.2,0.8165]
[1734021582005,0.796,3939.5,3937.4,0.7611]
[1734021582006,2.97502451,3939.3,3937.4,0.7611]
[1734021582819,2.97502451,3938.7,3937.4,0.7611]
[1734021583022,2.97502451,3938.2,3937.4,0.7611]
[1734021583226,2.97502451,3937.7,3937.4,0.7611]
[1734021583437,3.0,3937.6,3937.4,0.7611]
[1734021583634,3.59750245,3937.6,3937.4,0.7611]
[1734021583804,3.59750245,3937.6,3935.8,0.776]
[1734021583992,2.97502451,3936.7,3935.8,0.776]
[1734021584194,3.0,3936.6,3935.8,0.776]
[1734021585510,0.55,3936.5,3935.8,0.776]
[1734021585708,0.65250245,3936.4,3935.8,0.776]
[1734021586032,3.0,3936.1,3935.8,0.776]
[1734021586240,3.0,3936.1,3934.2,0.824]
[1734021586530,3.0,3936.1,3934.1,2.0]
[1734021586531,3.0,3936.1,3934.6,0.824]
[1734021587241,0.7839,3936.6,3933.9,0.02540966]
[1734021587242,3.0,3936.6,3935.0,0.7604]
[1734021587534,0.55,3937.0,3935.2,0.7555]
[1734021587719,3.0,3936.6,3935.2,0.7555]
[1734021587920,0.55,3936.5,3935.2,0.7555]
[1734021589088,3.0,3936.6,3935.2,0.7555]
[1734021589653,4.05553661,3936.6,3935.2,0.7555]
[1734021589848,0.8613866,3936.5,3935.2,0.7555]
[1734021591294,1.91692321,3936.5,3935.2,0.7555]
[1734021591521,0.8613866,3936.5,3935.2,0.7555]
[1734021592088,0.55,3936.4,3935.2,0.7555]
[1734021592291,3.0,3936.1,3935.2,0.7555]
[1734021592503,0.70305611,3936.0,3935.2,0.7555]
[1734021593401,3.0,3936.1,3935.2,0.7555]
[1734021595003,0.55,3936.0,3935.2,0.7555]
[1734021595182,0.55,3935.5,3935.2,0.7555]
[1734021596574,0.55,3935.5,3932.6,0.25]
[1734021596575,0.55,3935.5,3933.8,2.0]
[1734021596811,0.55,3935.5,3932.8,0.807]
[1734021597008,3.0,3935.6,3932.6,0.25]
[1734021597009,0.55,3935.3,3933.5,2.807]
[1734021597208,3.52502451,3935.3,3933.4,0.807]
[1734021597386,0.55,3935.1,3933.6,0.807]
[1734021598070,3.55,3934.8,3933.6,0.807]
[1734021599488,1.05553661,3935.5,3933.8,2.0]
[1734021599695,4.05553661,3935.8,3934.0,0.7506]
[1734021599884,5.08609774,3936.1,3934.0,0.7506]
[1734021599885,3.0,3936.0,3934.0,0.7506]
[1734021600084,2.97502451,3935.7,3934.0,0.7506]
[1734021600311,3.0,3935.6,3934.0,0.7506]
[1734021600510,2.97502451,3936.1,3934.0,0.7506]
[1734021600725,3.0,3935.2,3934.0,0.7506]
[1734021600890,0.55,3935.1,3934.0,0.7506]
[1734021601599,3.0,3935.6,3934.0,0.7506]
[1734021601794,0.55,3935.5,3934.0,0.7506]
[1734021602881,3.55,3935.1,3934.0,0.7506]
[1734021603086,0.55,3934.9,3934.0,0.7506]
[1734021604090,0.55,3935.0,3934.0,0.7506]
[1734021604931,0.55,3935.4,3934.0,0.7506]
[1734021605128,3.55,3935.1,3934.0,0.7506]
[1734021605332,0.55,3934.9,3934.0,0.7506]
[1734021605534,0.55,3934.7,3934.0,0.7506]
[1734021606232,3.0,3934.9,3934.0,0.7506]
[1734021606431,0.55,3934.9,3934.0,0.7506]
[1734021606602,3.55,3934.9,3934.0,0.7506]
[1734021607250,0.55,3935.2,3934.0,0.7506]
[1734021607417,0.55,3935.3,3934.0,0.7506]
[1734021608310,0.29660189,3935.2,3934.0,0.7506]
[1734021609848,2.41601892,3934.9,3934.0,0.7506]
[1734021610052,3.55,3934.8,3934.0,0.7506]
[1734021610756,0.55,3935.1,3934.0,0.7506]
[1734021611817,3.55,3935.6,3934.0,0.8188]
[1734021612054,2.54228089,3935.7,3934.1,0.28188]
[1734021612209,2.54228089,3935.7,3934.2,0.8188]
[1734021613422,2.41601892,3935.3,3934.2,0.8188]
[1734021613850,0.55,3935.6,3934.2,0.8188]
[1734021614160,2.41601892,3936.1,3934.6,0.8301]
[1734021615415,3.55,3936.0,3934.6,0.8301]
[1734021615864,3.55,3936.0,3934.5,2.0]
[1734021615865,1.05857543,3936.8,3935.0,0.7738]
[1734021616053,3.17191049,3937.7,3935.0,0.79920562]
[1734021616054,1.05857543,3937.1,3935.0,0.79920562]
[1734021616248,4.83128206,3937.3,3935.2,0.7738]
[1734021616249,0.58898575,3937.0,3935.2,0.7738]
[1734021616426,0.58898575,3937.0,3935.1,0.27992056]
[1734021616427,0.58898575,3937.0,3935.3,0.7738]
[1734021617036,0.58898575,3937.0,3935.3,2.0]
[1734021617237,2.41601892,3937.3,3935.4,0.79920476]
[1734021617446,2.41601892,3937.3,3935.5,0.7738]
[1734021617772,2.41601892,3936.9,3935.5,0.7738]
[1734021618123,2.41601892,3936.9,3935.6,0.8042]
[1734021618326,2.41601892,3936.9,3935.7,0.28042]
[1734021618543,2.41601892,3936.9,3935.8,0.777]
[1734021619452,3.55,3936.8,3935.8,0.777]
[1734021619655,0.55,3936.4,3935.8,0.777]
[1734021619961,3.55,3936.4,3935.8,0.777]
[1734021620181,4.14660189,3936.4,3935.8,0.777]
[1734021620352,1.14660189,3936.4,3935.8,0.777]
[1734021620549,3.55,3936.8,3935.8,0.777]
[1734021621548,0.55,3936.8,3935.8,0.777]
[1734021621801,2.41601892,3937.3,3936.0,0.8105]
[1734021623861,0.55,3937.2,3936.0,0.8105]
[1734021624066,3.55,3937.2,3936.0,0.8105]
[1734021624265,0.55,3937.0,3936.0,0.8105]
[1734021624463,3.55,3936.8,3936.0,0.8105]
[1734021624692,3.55,3936.8,3934.4,0.02540241]
[1734021624693,3.55,3936.4,3934.5,2.0]
[1734021624903,3.55,3936.0,3934.6,0.8244]
[1734021625196,2.46087732,3937.1,3934.6,0.8244]
[1734021625197,3.55,3935.6,3934.6,0.8244]
[1734021625356,0.59660189,3935.5,3934.6,0.8244]
[1734021625698,0.55,3935.4,3934.6,0.8244]
[1734021626495,0.55,3935.2,3933.5,0.8086]
[1734021626829,3.55,3935.2,3933.5,0.8086]
[1734021626985,0.55,3934.8,3933.5,0.8086]
[1734021627327,1.14660189,3934.8,3933.5,1.08946]
[1734021628211,0.55,3935.0,3933.5,1.08946]
[1734021629600,0.55,3935.1,3933.5,1.08946]
[1734021629827,1.60857543,3935.2,3933.5,1.08946]
[1734021630333,1.60857543,3935.2,3933.6,0.8062]
[1734021630483,1.60857543,3935.2,3933.7,0.02541757]
[1734021630484,0.55,3935.2,3933.7,0.02541757]
[1734021630827,0.59660189,3935.5,3933.8,0.8288]
[1734021630992,1.05857543,3935.8,3934.1,2.0]
[1734021631192,1.05857543,3935.8,3934.2,0.8288]
[1734021631393,4.03244896,3935.5,3934.2,0.8288]
[1734021631819,3.0,3935.4,3934.2,0.8288]
[1734021632026,4.05857543,3935.4,3934.2,0.8288]
[1734021632319,0.55,3935.2,3934.2,0.8288]
[1734021632523,0.55,3935.2,3934.3,0.02541601]
[1734021632693,0.55,3935.6,3934.2,0.8288]
[1734021633285,0.12743711,3935.7,3934.3,0.77641471]
[1734021633507,0.12743711,3935.7,3934.3,0.751]
[1734021633906,1.05857543,3936.0,3934.4,2.02541207]
[1734021634163,1.05857543,3936.4,3934.6,0.8074]
[1734021634453,4.03244896,3936.3,3934.6,0.8074]
[1734021635010,2.97387353,3935.9,3934.6,0.8074]
[1734021635356,3.0,3935.8,3934.6,0.8074]
[1734021635721,0.55,3935.7,3934.6,0.8074]
[1734021635942,0.72979735,3935.6,3934.6,0.8074]
[1734021636141,3.0,3935.8,3934.6,0.8074]
[1734021636327,0.55,3935.7,3934.6,0.8074]
[1734021636540,1.60857543,3935.7,3934.6,0.8074]
[1734021636855,0.55,3935.7,3934.6,0.8074]
[1734021637056,1.60857543,3935.7,3934.6,0.8074]
[1734021637284,0.55,3935.5,3934.6,0.8074]
[1734021637966,4.05857543,3935.8,3934.6,0.8074]
[1734021638169,0.12529222,3936.1,3934.6,0.8074]
[1734021638170,4.18386765,3936.1,3934.6,0.8074]
[1734021638372,4.18386765,3936.1,3934.0,2.0]
[1734021638373,1.05857543,3936.2,3934.8,0.8103]
[1734021638668,1.05857543,3936.3,3934.8,0.8103]
[1734021638977,1.05857543,3936.6,3935.0,0.8103]
[1734021639118,4.03244896,3936.8,3935.0,0.8103]
[1734021639473,2.97387353,3936.8,3935.0,0.8103]
[1734021639853,4.03244896,3936.8,3935.0,0.8103]
[1734021640174,3.0,3936.3,3935.0,0.8103]
[1734021640378,3.0,3936.3,3934.9,2.0]
[1734021640379,3.0,3936.3,3935.1,0.28103]
[1734021640521,3.0,3936.3,3935.2,0.7817]
[1734021640871,0.55,3936.2,3935.2,0.7817]
[1734021641420,3.0,3936.3,3935.2,0.7817]
[1734021641753,0.55,3936.2,3935.2,0.7817]
[1734021643626,4.05857543,3936.5,3935.3,0.02540828]
[1734021643831,4.05857543,3936.5,3934.9,2.0]
[1734021643832,0.55,3936.4,3935.4,0.8268]
[1734021644167,0.55,3936.4,3935.5,0.02540703]
[1734021644377,3.0,3935.5,3935.0,0.8268]
[1734021645536,1.58786314,3935.9,3935.0,0.8268]
[1734021645537,3.0,3935.9,3935.0,0.8268]
[1734021646771,3.0,3935.9,3935.1,0.02540976]
[1734021646937,3.0,3935.9,3935.0,0.8268]
[1734021649251,5.41505854,3935.8,3935.0,0.8268]
[1734021649428,6.47363397,3935.8,3935.0,0.8268]
[1734021650163,5.41505854,3935.8,3935.0,0.8268]
[1734021652662,5.41200023,3935.8,3935.0,0.8268]
[1734021652865,0.55,3935.7,3935.0,0.8268]
[1734021653161,2.41505854,3935.4,3935.0,0.8268]
[1734021653410,2.41505854,3935.4,3934.0,2.0]
[1734021653573,3.0,3935.3,3934.1,0.7538]
[1734021654299,2.41505854,3935.4,3934.1,0.7538]
[1734021654507,3.0,3935.6,3934.1,0.7538]
[1734021654686,3.55,3935.7,3934.3,0.7523]
[1734021655005,4.60857543,3935.7,3934.3,0.7523]
[1734021655518,1.05857543,3935.7,3934.4,2.7523]
[1734021655802,1.05857543,3936.2,3934.9,2.0]
[1734021656008,1.05857543,3936.4,3935.1,0.7523]
[1734021656306,1.05857543,3936.4,3934.9,2.0]
[1734021656307,1.05857543,3936.5,3935.3,0.7523]
[1734021656679,1.05857543,3936.5,3935.5,0.7523]
[1734021657707,1.05857543,3936.8,3935.5,0.7523]
[1734021657856,1.05857543,3936.8,3935.5,0.77770379]
[1734021658061,3.47363397,3937.0,3935.5,0.7523]
[1734021658260,1.05857543,3937.2,3935.8,2.0]
[1734021658560,3.60013415,3937.4,3936.0,0.7996]
[1734021658872,1.05857543,3937.2,3936.0,0.7996]
[1734021659076,1.05857543,3937.3,3936.0,0.7996]
[1734021659272,1.05857543,3937.2,3936.0,0.7996]
[1734021659611,2.41505854,3937.0,3936.0,0.7996]
[1734021660021,2.41505854,3936.6,3936.0,0.7996]
[1734021660317,4.05857543,3936.9,3936.0,0.7996]
[1734021660521,3.0,3936.9,3936.0,0.7996]
[1734021660877,2.41505854,3937.0,3936.0,0.7996]
[1734021662118,1.05857543,3937.1,3936.0,0.7996]
[1734021662332,5.41505854,3937.0,3936.0,0.7996]
[1734021662615,3.55,3936.9,3936.0,0.7996]
[1734021663193,0.55,3936.5,3936.0,0.7996]
[1734021663393,3.55,3936.5,3936.0,0.7996]
[1734021663776,0.55,3936.1,3934.6,0.776]
[1734021663985,0.55,3935.7,3934.6,0.776]
[1734021664215,3.55,3935.7,3934.6,0.776]
[1734021664423,4.60857543,3935.7,3934.6,0.776]
[1734021665083,1.05857543,3935.6,3934.6,0.776]
[1734021665280,1.05857543,3935.5,3934.6,0.776]
[1734021665592,0.93947971,3935.5,3934.6,0.776]
[1734021666107,4.99805514,3935.5,3934.6,0.776]
[1734021666439,2.41505854,3935.4,3934.6,0.776]
[1734021666590,5.41505854,3935.4,3934.6,0.776]
[1734021667680,2.41505854,3935.0,3933.4,2.0]
[1734021667887,3.24150585,3934.9,3933.5,0.788]
[1734021668287,4.30008128,3934.9,3933.5,0.788]
[1734021668521,3.24150585,3934.9,3933.5,0.788]
[1734021668727,4.30008128,3934.9,3933.5,0.788]
[1734021668911,3.24150585,3934.9,3933.6,0.2788]
[1734021669440,3.24150585,3934.9,3933.7,0.788]
[1734021669994,2.41505854,3934.6,3933.7,0.788]
[1734021671186,3.0,3934.5,3933.7,0.788]
[1734021671488,2.41505854,3934.6,3933.7,0.788]
[1734021672691,1.05857543,3935.0,3933.9,0.8178]
[1734021672893,1.05857543,3935.4,3934.1,0.8178]
[1734021673135,1.05857543,3935.5,3934.0,2.0]
[1734021673334,4.16903822,3935.8,3932.8,3.51747956]
[1734021673335,1.05857543,3935.8,3934.5,0.8178]
[1734021673994,1.05857543,3935.7,3934.5,0.8178]
[1734021674194,1.05857543,3935.8,3934.5,0.8178]
[1734021674844,1.05857543,3935.9,3934.5,0.8178]
[1734021674991,4.05857543,3935.9,3934.7,0.8002]
[1734021675195,1.05857543,3936.0,3934.9,0.8002]
[1734021675447,1.05857543,3936.4,3935.1,0.7541]
[1734021675597,1.05857543,3936.8,3935.3,0.7541]
[1734021675790,1.05857543,3936.9,3935.5,0.7541]
[1734021676235,1.05857543,3937.0,3935.5,0.7541]
[1734021676801,4.05857543,3937.0,3935.5,0.7541]
[1734021676997,1.05857543,3936.8,3935.5,0.7541]
[1734021677197,3.0,3936.8,3935.5,0.7541]
[1734021677429,1.05857543,3936.9,3935.5,0.7541]
[1734021677703,4.05857543,3937.0,3935.5,0.7541]
[1734021678935,1.05857543,3936.8,3935.5,0.7541]
[1734021679139,1.01085754,3936.7,3935.5,0.7541]
[1734021679326,1.05857543,3936.9,3935.6,0.7905]
[1734021679528,3.0,3937.0,3935.6,0.7905]
[1734021681911,0.55,3936.9,3935.6,0.7905]
[1734021682112,3.55,3936.6,3935.6,0.7905]
[1734021682928,0.55,3936.4,3935.6,0.7905]
[1734021683257,3.55,3936.2,3935.6,0.7905]
[1734021683424,4.60857543,3936.2,3935.6,0.7905]
[1734021683625,4.60857543,3936.2,3934.1,2.0]
[1734021683824,4.60857543,3936.2,3932.9,0.25]
[1734021683825,1.60857543,3936.0,3934.2,0.8011]
[1734021684356,3.0,3936.2,3934.7,0.8011]
[1734021684540,0.55,3936.4,3934.9,0.8011]
[1734021684851,1.60857543,3936.5,3934.9,0.8011]
[1734021685210,0.55,3936.5,3935.0,0.02540771]
[1734021685414,0.55,3936.5,3934.8,0.28011]
[1734021685415,0.55,3936.5,3935.1,0.8011]
[1734021685858,1.60857543,3936.5,3935.1,0.8011]
[1734021686027,1.54329597,3936.5,3935.1,0.8011]
[1734021686539,3.0,3936.4,3935.1,0.8011]
[1734021686757,3.0,3936.2,3935.1,0.8011]
[1734021687330,4.05857543,3936.4,3935.1,0.8011]
[1734021687556,3.0,3936.4,3935.1,0.8011]
[1734021687758,2.6018714,3936.5,3935.1,0.8011]
[1734021687759,4.54329597,3936.5,3935.1,0.8011]
[1734021687959,0.93383925,3936.4,3935.1,0.8011]
[1734021688115,3.93383925,3936.4,3935.1,0.8011]
[1734021688320,4.99241468,3936.4,3935.1,0.8011]
[1734021688572,1.60857543,3936.0,3935.1,0.8011]
[1734021688739,0.55,3936.0,3935.1,0.8011]
[1734021688925,0.75804966,3935.9,3935.1,0.8011]
[1734021689269,0.55,3935.8,3935.1,0.8011]
[1734021689428,3.55,3935.8,3935.1,0.8011]
[1734021689619,0.55,3935.8,3935.1,0.8011]
[1734021690390,0.75804966,3935.9,3935.1,0.8011]
[1734021690855,0.55,3936.3,3935.1,0.8011]
[1734021691049,1.99241468,3936.4,3935.1,0.8011]
[1734021691287,1.05857543,3936.5,3935.1,0.8011]
[1734021691448,1.05857543,3936.6,3935.1,0.8011]
[1734021691645,1.05857543,3936.7,3935.5,0.7999]